[Event "*** SCC Grand Prix: Titled Tuesday Blitz"]
[Site "Chess.com"]
[Date "2020.06.02"]
[Round "2"]
[White "Slovak_fighter2000"]
[Black "zala02"]
[Result "1-0"]
[WhiteElo "2451"]
[BlackElo "2238"]
[TimeControl "180+1"]
[EndTime "10:19:26 PDT"]
[Termination "Slovak_fighter2000 won by resignation"]

1. Nf3 {[%clk 0:03:00.9]} 1... d5 {[%clk 0:02:58.5]} 2. c4 {[%clk 0:02:59.4]}
2... c6 {[%clk 0:02:45.2]} 3. g3 {[%clk 0:02:58.5]} 3... Bg4 {[%clk 0:02:44]} 4.
Bg2 {[%clk 0:02:58.2]} 4... Nf6 {[%clk 0:02:42.7]} 5. Qb3 {[%clk 0:02:56.1]}
5... Qb6 {[%clk 0:02:27.2]} 6. O-O {[%clk 0:02:52.4]} 6... Nbd7 {[%clk
0:02:23.9]} 7. d3 {[%clk 0:02:50.9]} 7... e5 {[%clk 0:02:04.2]} 8. cxd5 {[%clk
0:02:46.8]} 8... cxd5 {[%clk 0:02:02.2]} 9. Nc3 {[%clk 0:02:46.2]} 9... Qxb3
{[%clk 0:01:38.4]} 10. axb3 {[%clk 0:02:47.1]} 10... a6 {[%clk 0:01:38.9]} 11.
h3 {[%clk 0:02:32.2]} 11... Be6 {[%clk 0:01:30.8]} 12. Ng5 {[%clk 0:02:14.9]}
12... Bd6 {[%clk 0:01:23.7]} 13. Nxe6 {[%clk 0:02:12.5]} 13... fxe6 {[%clk
0:01:24.6]} 14. Nb5 {[%clk 0:02:06.1]} 14... Bb8 {[%clk 0:01:14.2]} 15. Bd2
{[%clk 0:02:04.4]} 15... O-O {[%clk 0:01:11.3]} 16. Rfc1 {[%clk 0:02:02]} 16...
Kf7 {[%clk 0:00:41.5]} 17. Nc7 {[%clk 0:01:56.6]} 17... Ra7 {[%clk 0:00:41.8]}
18. Be3 {[%clk 0:01:53.3]} 18... d4 {[%clk 0:00:30.6]} 19. Bd2 {[%clk
0:01:51.1]} 19... Rc8 {[%clk 0:00:21.6]} 20. Nb5 {[%clk 0:01:42.3]} 20... Rxc1+
{[%clk 0:00:19.8]} 21. Bxc1 {[%clk 0:01:43.2]} 21... axb5 {[%clk 0:00:20.4]} 22.
Rxa7 {[%clk 0:01:31.7]} 22... Bxa7 {[%clk 0:00:21.3]} 23. Bxb7 {[%clk
0:01:30.9]} 23... Nc5 {[%clk 0:00:21.6]} 24. Bc6 {[%clk 0:01:26.9]} 24... Nxb3
{[%clk 0:00:22]} 25. Bg5 {[%clk 0:01:26.2]} 25... b4 {[%clk 0:00:22.7]} 26. Ba4
{[%clk 0:01:19.8]} 26... Nc5 {[%clk 0:00:22.6]} 27. Bc2 {[%clk 0:01:17.2]} 27...
Nd5 {[%clk 0:00:22.9]} 28. Bd2 {[%clk 0:01:13.5]} 28... b3 {[%clk 0:00:23]} 29.
Bd1 {[%clk 0:01:12.3]} 29... Bb6 {[%clk 0:00:23.5]} 30. Kg2 {[%clk 0:01:10.3]}
30... Ne7 {[%clk 0:00:23.6]} 31. Bb4 {[%clk 0:01:07.1]} 31... Nc6 {[%clk
0:00:23.1]} 32. Bxc5 {[%clk 0:01:05.2]} 32... Bxc5 {[%clk 0:00:24]} 33. Bxb3
{[%clk 0:01:05]} 33... Bb4 {[%clk 0:00:23.7]} 34. Kf3 {[%clk 0:01:03.5]} 34...
Ke7 {[%clk 0:00:23.3]} 35. Ke4 {[%clk 0:01:01.1]} 35... Kd6 {[%clk 0:00:23.7]}
36. Ba4 {[%clk 0:00:55.4]} 36... Be1 {[%clk 0:00:21.2]} 37. Kf3 {[%clk
0:00:52.5]} 37... Ne7 {[%clk 0:00:16.1]} 38. Bb3 {[%clk 0:00:47]} 38... Nd5
{[%clk 0:00:16.1]} 39. Bc4 {[%clk 0:00:45.5]} 39... Bd2 {[%clk 0:00:16.3]} 40.
Ke4 {[%clk 0:00:41]} 40... Bc1 {[%clk 0:00:13.4]} 41. b3 {[%clk 0:00:36.6]}
41... Bd2 {[%clk 0:00:13.7]} 42. h4 {[%clk 0:00:32.3]} 42... Be1 {[%clk
0:00:13.5]} 43. Kf3 {[%clk 0:00:31.6]} 43... Nb6 {[%clk 0:00:13.5]} 44. Bb5
{[%clk 0:00:30.9]} 44... Nd7 {[%clk 0:00:11.3]} 45. Bc4 {[%clk 0:00:27]} 45...
Nc5 {[%clk 0:00:11.4]} 46. g4 {[%clk 0:00:24.5]} 46... Nb7 {[%clk 0:00:11.5]}
47. Bb5 {[%clk 0:00:21.6]} 47... Na5 {[%clk 0:00:08.6]} 48. Ba4 {[%clk
0:00:21.4]} 48... Nc6 {[%clk 0:00:06.8]} 49. h5 {[%clk 0:00:19.2]} 49... Ne7
{[%clk 0:00:06.9]} 50. e3 {[%clk 0:00:17.4]} 50... Nd5 {[%clk 0:00:06.1]} 51.
Be8 {[%clk 0:00:10.6]} 51... h6 {[%clk 0:00:05.4]} 52. Ba4 {[%clk 0:00:09.9]}
52... Bc3 {[%clk 0:00:04.4]} 53. Bb5 {[%clk 0:00:09]} 53... Bd2 {[%clk
0:00:04.6]} 54. exd4 {[%clk 0:00:07.9]} 54... exd4 {[%clk 0:00:05.5]} 55. Ke4
{[%clk 0:00:07.5]} 55... e5 {[%clk 0:00:05.7]} 56. Ba6 {[%clk 0:00:05.2]} 56...
Nf6+ {[%clk 0:00:05.8]} 57. Kf5 {[%clk 0:00:04.5]} 57... Bg5 {[%clk 0:00:06]}
58. Bb7 {[%clk 0:00:03.3]} 58... Nd5 {[%clk 0:00:06.2]} 59. Kg6 {[%clk
0:00:02.2]} 59... Bf6 {[%clk 0:00:05.3]} 60. Kf7 {[%clk 0:00:02.5]} 60... Nf4
{[%clk 0:00:04.8]} 61. Be4 {[%clk 0:00:02.9]} 61... Nh3 {[%clk 0:00:04]} 62. f3
{[%clk 0:00:02.3]} 62... Ng5+ {[%clk 0:00:03.9]} 63. Kg6 {[%clk 0:00:02]} 63...
Nxe4 {[%clk 0:00:04.1]} 64. fxe4 {[%clk 0:00:02.9]} 64... Kc5 {[%clk 0:00:04.4]}
65. Kf7 {[%clk 0:00:03.1]} 65... Kb4 {[%clk 0:00:04.8]} 66. Kg6 {[%clk 0:00:04]}
66... Kxb3 {[%clk 0:00:05.3]} 67. g5 {[%clk 0:00:04.9]} 67... hxg5 {[%clk
0:00:03.8]} 68. h6 {[%clk 0:00:05.1]} 68... gxh6 {[%clk 0:00:04.1]} 69. Kxf6
{[%clk 0:00:05.5]} 69... Kc3 {[%clk 0:00:03.5]} 70. Kxe5 {[%clk 0:00:05.6]}
70... Kxd3 {[%clk 0:00:03.5]} 71. Kf5 {[%clk 0:00:06.2]} 71... Kc3 {[%clk
0:00:02.7]} 72. e5 {[%clk 0:00:06.7]} 72... d3 {[%clk 0:00:03.3]} 73. e6 {[%clk
0:00:07.3]} 73... d2 {[%clk 0:00:04.2]} 74. e7 {[%clk 0:00:07.9]} 74... d1=Q
{[%clk 0:00:05.1]} 75. e8=Q {[%clk 0:00:08.5]} 75... Qf1+ {[%clk 0:00:05.1]} 76.
Kg4 {[%clk 0:00:07.9]} 76... Qe2+ {[%clk 0:00:05]} 77. Qxe2 {[%clk 0:00:06.3]}
77... Kd4 {[%clk 0:00:04.3]} 78. Qh2 {[%clk 0:00:07.2]} 1-0

[Event "*** SCC Grand Prix: Titled Tuesday Blitz"]
[Site "Chess.com"]
[Date "2020.06.02"]
[Round "2"]
[White "Durarbayli"]
[Black "kingnb"]
[Result "0-1"]
[WhiteElo "2764"]
[BlackElo "2535"]
[TimeControl "180+1"]
[EndTime "10:19:31 PDT"]
[Termination "kingnb won by resignation"]

1. e4 {[%clk 0:03:00.9]} 1... e6 {[%clk 0:02:59.1]} 2. d4 {[%clk 0:03:00.6]}
2... d5 {[%clk 0:03:00]} 3. e5 {[%clk 0:03:00.4]} 3... c5 {[%clk 0:02:59.8]} 4.
c3 {[%clk 0:03:00.5]} 4... Qb6 {[%clk 0:03:00.2]} 5. Nf3 {[%clk 0:03:00.1]} 5...
Bd7 {[%clk 0:03:00]} 6. Be2 {[%clk 0:02:47.6]} 6... Bb5 {[%clk 0:02:54.3]} 7.
dxc5 {[%clk 0:02:46.7]} 7... Bxc5 {[%clk 0:02:53]} 8. b4 {[%clk 0:02:46.6]} 8...
Bxe2 {[%clk 0:02:27.7]} 9. Qxe2 {[%clk 0:02:46.5]} 9... Be7 {[%clk 0:02:28.2]}
10. a4 {[%clk 0:02:43.6]} 10... Nd7 {[%clk 0:02:27.7]} 11. O-O {[%clk
0:02:18.2]} 11... Nh6 {[%clk 0:02:25.2]} 12. Bxh6 {[%clk 0:02:08.6]} 12... gxh6
{[%clk 0:02:26.1]} 13. Na3 {[%clk 0:02:04.1]} 13... Rg8 {[%clk 0:02:03.6]} 14.
Qd3 {[%clk 0:01:58.7]} 14... Rg6 {[%clk 0:02:01.6]} 15. c4 {[%clk 0:01:45.9]}
15... dxc4 {[%clk 0:01:19.2]} 16. Nxc4 {[%clk 0:01:45.3]} 16... Qxb4 {[%clk
0:01:19.3]} 17. Rfb1 {[%clk 0:01:22.2]} 17... Qc5 {[%clk 0:01:16.3]} 18. Rxb7
{[%clk 0:01:09.2]} 18... Nb6 {[%clk 0:01:16.1]} 19. Nd6+ {[%clk 0:00:55.9]}
19... Kf8 {[%clk 0:00:48.1]} 20. Qe4 {[%clk 0:00:24.3]} 20... Nd5 {[%clk
0:00:30.8]} 21. h3 {[%clk 0:00:13.9]} 21... Bxd6 {[%clk 0:00:14.5]} 22. exd6
{[%clk 0:00:13.6]} 22... Qxd6 {[%clk 0:00:15.4]} 23. Ne5 {[%clk 0:00:10.8]}
23... Rg7 {[%clk 0:00:15.4]} 24. Rab1 {[%clk 0:00:05.5]} 24... Rd8 {[%clk
0:00:11.1]} 25. Rb8 {[%clk 0:00:04.2]} 25... Rxb8 {[%clk 0:00:09.6]} 26. Rxb8+
{[%clk 0:00:05.1]} 26... Ke7 {[%clk 0:00:10.5]} 27. Rb7+ {[%clk 0:00:04.8]}
27... Kf8 {[%clk 0:00:10.9]} 28. Rb8+ {[%clk 0:00:04.1]} 28... Ke7 {[%clk
0:00:10.9]} 29. Rb7+ {[%clk 0:00:05]} 29... Kf8 {[%clk 0:00:10.9]} 30. Rxa7
{[%clk 0:00:05.9]} 30... f5 {[%clk 0:00:09.7]} 31. Ra8+ {[%clk 0:00:05.2]} 31...
Ke7 {[%clk 0:00:10.3]} 32. Qd4 {[%clk 0:00:05.4]} 32... Nc7 {[%clk 0:00:09]} 33.
Qxd6+ {[%clk 0:00:02.3]} 33... Kxd6 {[%clk 0:00:09.9]} 34. Nc4+ {[%clk
0:00:02.1]} 34... Kc5 {[%clk 0:00:10]} 35. Rd8 {[%clk 0:00:01.4]} 35... Kxc4
{[%clk 0:00:09.7]} 36. a5 {[%clk 0:00:01.5]} 36... Kb5 {[%clk 0:00:09.9]} 37.
Rd6 {[%clk 0:00:01.9]} 37... Kxa5 {[%clk 0:00:10.2]} 38. Rd4 {[%clk 0:00:02.8]}
38... Kb5 {[%clk 0:00:10.4]} 39. Rh4 {[%clk 0:00:03.7]} 39... Kc6 {[%clk
0:00:10.3]} 40. Rxh6 {[%clk 0:00:03.8]} 40... Kd6 {[%clk 0:00:10.9]} 41. Rh4
{[%clk 0:00:04.7]} 41... Ke7 {[%clk 0:00:11.5]} 42. Ra4 {[%clk 0:00:05.1]} 42...
Kf6 {[%clk 0:00:12]} 43. g3 {[%clk 0:00:05.5]} 43... Nd5 {[%clk 0:00:12.4]} 44.
Kg2 {[%clk 0:00:05.7]} 44... h5 {[%clk 0:00:12.2]} 45. Rh4 {[%clk 0:00:04.6]}
45... Kg6 {[%clk 0:00:11.7]} 46. Ra4 {[%clk 0:00:04]} 46... Ne7 {[%clk
0:00:12.2]} 47. Ra6 {[%clk 0:00:04]} 47... Kf6 {[%clk 0:00:12.8]} 48. Ra5 {[%clk
0:00:04]} 48... h4 {[%clk 0:00:13.2]} 49. Ra8 {[%clk 0:00:04.5]} 49... hxg3
{[%clk 0:00:13.6]} 50. fxg3 {[%clk 0:00:05.4]} 50... Ng6 {[%clk 0:00:12.5]} 51.
Kf2 {[%clk 0:00:04.8]} 51... Ne5 {[%clk 0:00:11.9]} 52. Rf8+ {[%clk 0:00:05.3]}
52... Rf7 {[%clk 0:00:12.3]} 53. Rh8 {[%clk 0:00:05.2]} 53... Rd7 {[%clk
0:00:13]} 54. Rh6+ {[%clk 0:00:05.4]} 54... Ng6 {[%clk 0:00:12.8]} 55. Rh5
{[%clk 0:00:04.2]} 55... Rd2+ {[%clk 0:00:11.8]} 56. Ke3 {[%clk 0:00:04.6]}
56... Rd7 {[%clk 0:00:12.5]} 57. g4 {[%clk 0:00:03]} 57... f4+ {[%clk
0:00:12.9]} 58. Ke4 {[%clk 0:00:03.1]} 58... Ra7 {[%clk 0:00:12.2]} 59. Rh6
{[%clk 0:00:02.3]} 59... Ra4+ {[%clk 0:00:12.5]} 60. Kf3 {[%clk 0:00:02.1]}
60... Kg5 {[%clk 0:00:11.2]} 61. Rh5+ {[%clk 0:00:01.9]} 61... Kf6 {[%clk
0:00:10.6]} 62. Rh6 {[%clk 0:00:01.5]} 62... Ra3+ {[%clk 0:00:11.1]} 63. Ke4
{[%clk 0:00:02.4]} 63... Re3+ {[%clk 0:00:10.8]} 64. Kd4 {[%clk 0:00:02.9]}
64... e5+ {[%clk 0:00:11.4]} 65. Kd5 {[%clk 0:00:03.2]} 65... Kg7 {[%clk
0:00:12]} 66. Rh5 {[%clk 0:00:02.9]} 66... f3 {[%clk 0:00:12.6]} 67. Rf5 {[%clk
0:00:03.2]} 67... Nf4+ {[%clk 0:00:12.9]} 68. Kd6 {[%clk 0:00:03.5]} 68... f2
{[%clk 0:00:13.3]} 69. Rg5+ {[%clk 0:00:03.9]} 69... Ng6 {[%clk 0:00:12.8]} 0-1

[Event "*** SCC Grand Prix: Titled Tuesday Blitz"]
[Site "Chess.com"]
[Date "2020.06.02"]
[Round "2"]
[White "Ati1517"]
[Black "Azatic"]
[Result "1/2-1/2"]
[WhiteElo "2231"]
[BlackElo "2434"]
[TimeControl "180+1"]
[EndTime "10:19:32 PDT"]
[Termination "Game drawn by agreement"]

1. d4 {[%clk 0:03:00.9]} 1... Nf6 {[%clk 0:00:57]} 2. c4 {[%clk 0:02:57.9]} 2...
g6 {[%clk 0:00:56.8]} 3. Nc3 {[%clk 0:02:57.6]} 3... Bg7 {[%clk 0:00:57.7]} 4.
Nf3 {[%clk 0:02:58.2]} 4... O-O {[%clk 0:00:58.6]} 5. g3 {[%clk 0:02:59.1]} 5...
d6 {[%clk 0:00:58.7]} 6. Bg2 {[%clk 0:02:59.6]} 6... c5 {[%clk 0:00:59.6]} 7. d5
{[%clk 0:02:59.4]} 7... Na6 {[%clk 0:00:59.3]} 8. O-O {[%clk 0:02:58.8]} 8...
Nc7 {[%clk 0:01:00.2]} 9. e4 {[%clk 0:02:57.6]} 9... Rb8 {[%clk 0:01:00.5]} 10.
Qc2 {[%clk 0:02:52.9]} 10... b5 {[%clk 0:00:59.7]} 11. cxb5 {[%clk 0:02:52]}
11... Nxb5 {[%clk 0:01:00.6]} 12. Nxb5 {[%clk 0:02:48]} 12... Rxb5 {[%clk
0:01:01.5]} 13. Re1 {[%clk 0:02:45.5]} 13... Nd7 {[%clk 0:00:51.8]} 14. Rb1
{[%clk 0:02:41.1]} 14... Ne5 {[%clk 0:00:49.6]} 15. Bf4 {[%clk 0:02:33.2]} 15...
Nxf3+ {[%clk 0:00:47.9]} 16. Bxf3 {[%clk 0:02:32.9]} 16... Qb6 {[%clk
0:00:47.7]} 17. b3 {[%clk 0:02:30.4]} 17... Bd7 {[%clk 0:00:47]} 18. Be2 {[%clk
0:02:06.7]} 18... Rb4 {[%clk 0:00:41.4]} 19. a3 {[%clk 0:02:01.6]} 19... Rd4
{[%clk 0:00:40.1]} 20. Be3 {[%clk 0:02:01.4]} 20... h5 {[%clk 0:00:35.1]} 21.
Bxd4 {[%clk 0:01:59.9]} 21... Bxd4 {[%clk 0:00:36]} 22. Bd3 {[%clk 0:01:50.6]}
22... Kg7 {[%clk 0:00:35.5]} 23. Kg2 {[%clk 0:01:48.4]} 23... h4 {[%clk
0:00:35.5]} 24. f4 {[%clk 0:01:45.1]} 24... Rh8 {[%clk 0:00:33.5]} 25. Rh1
{[%clk 0:01:32.4]} 25... h3+ {[%clk 0:00:33.4]} 26. Kf3 {[%clk 0:01:28.5]} 26...
Qb8 {[%clk 0:00:24.3]} 27. f5 {[%clk 0:01:24.2]} 27... Qb7 {[%clk 0:00:19.1]}
28. Rbe1 {[%clk 0:01:09.8]} 28... gxf5 {[%clk 0:00:18.5]} 29. exf5 {[%clk
0:01:09.5]} 29... Qxd5+ {[%clk 0:00:18.4]} 30. Be4 {[%clk 0:01:09.6]} 30... Qe5
{[%clk 0:00:18.4]} 31. Qd2 {[%clk 0:01:09.3]} 31... Qf6 {[%clk 0:00:18.1]} 32.
Qf4 {[%clk 0:01:06.3]} 32... Rb8 {[%clk 0:00:17.5]} 33. Rb1 {[%clk 0:00:59.4]}
33... Kf8 {[%clk 0:00:13.9]} 34. g4 {[%clk 0:00:51]} 34... Be5 {[%clk
0:00:13.8]} 35. Qd2 {[%clk 0:00:46]} 35... e6 {[%clk 0:00:14.3]} 36. g5 {[%clk
0:00:45]} 36... Qh8 {[%clk 0:00:12.7]} 37. Ke2 {[%clk 0:00:40.3]} 37... d5
{[%clk 0:00:10.7]} 38. Bf3 {[%clk 0:00:36.4]} 38... Bb5+ {[%clk 0:00:11.2]} 39.
Kd1 {[%clk 0:00:36]} 39... Bc3 {[%clk 0:00:11.8]} 40. Qe3 {[%clk 0:00:32.3]}
40... Qd4+ {[%clk 0:00:11.4]} 41. Qxd4 {[%clk 0:00:31.8]} 41... cxd4 {[%clk
0:00:11.5]} 42. Be2 {[%clk 0:00:29.9]} 42... d3 {[%clk 0:00:10.8]} 43. Bg4
{[%clk 0:00:29.8]} 43... Ke7 {[%clk 0:00:10.8]} 44. f6+ {[%clk 0:00:28.5]} 44...
Kd6 {[%clk 0:00:11]} 45. Bxh3 {[%clk 0:00:28.9]} 45... Rg8 {[%clk 0:00:11.3]}
46. Rg1 {[%clk 0:00:28.4]} 46... Bd4 {[%clk 0:00:11.8]} 47. Rg2 {[%clk
0:00:28.2]} 47... Rh8 {[%clk 0:00:11.3]} 48. Bg4 {[%clk 0:00:27.5]} 48... e5
{[%clk 0:00:11.5]} 49. a4 {[%clk 0:00:23.3]} 49... Bc6 {[%clk 0:00:11.3]} 50.
Kd2 {[%clk 0:00:20.8]} 50... e4 {[%clk 0:00:11.6]} 51. h3 {[%clk 0:00:19.8]}
51... Be5 {[%clk 0:00:12]} 52. Rf1 {[%clk 0:00:18.4]} 52... d4 {[%clk
0:00:12.2]} 53. g6 {[%clk 0:00:18.4]} 53... fxg6 {[%clk 0:00:12.5]} 54. f7
{[%clk 0:00:18.5]} 54... Rf8 {[%clk 0:00:13]} 55. Bd1 {[%clk 0:00:18.5]} 55...
Bd5 {[%clk 0:00:13.3]} 56. Rxg6+ {[%clk 0:00:18.6]} 56... Ke7 {[%clk 0:00:13.6]}
57. Ra6 {[%clk 0:00:18.7]} 57... Bb8 {[%clk 0:00:12.5]} 58. Rg6 {[%clk
0:00:18.2]} 58... Rxf7 {[%clk 0:00:12.5]} 59. Rxf7+ {[%clk 0:00:17.4]} 59...
Bxf7 {[%clk 0:00:13.4]} 60. Rg4 {[%clk 0:00:16.5]} 60... Be6 {[%clk 0:00:13.4]}
61. b4 {[%clk 0:00:16.2]} 61... Bxg4 {[%clk 0:00:13.2]} 62. Bxg4 {[%clk
0:00:16.3]} 62... Bf4+ {[%clk 0:00:14.1]} 63. Kd1 {[%clk 0:00:15.7]} 63... Kd6
{[%clk 0:00:15]} 64. Bf5 {[%clk 0:00:15.7]} 64... Kd5 {[%clk 0:00:15.1]} 65. h4
{[%clk 0:00:16.1]} 65... Ke5 {[%clk 0:00:15.4]} 66. Bg6 {[%clk 0:00:16.2]} 66...
Bh6 {[%clk 0:00:15.7]} 67. h5 {[%clk 0:00:16.4]} 67... Bf8 {[%clk 0:00:16]} 68.
b5 {[%clk 0:00:16.5]} 68... Kf4 {[%clk 0:00:15.8]} 69. a5 {[%clk 0:00:15.9]}
69... Kg5 {[%clk 0:00:08.4]} 70. b6 {[%clk 0:00:15.5]} 70... axb6 {[%clk
0:00:09]} 71. axb6 {[%clk 0:00:15.6]} 71... Bd6 {[%clk 0:00:09.6]} 72. Bxe4
{[%clk 0:00:12.5]} 72... Kxh5 {[%clk 0:00:09.1]} 73. Bxd3 {[%clk 0:00:12.7]}
73... Kg5 {[%clk 0:00:09.7]} 74. Be4 {[%clk 0:00:12.9]} 74... Kf6 {[%clk
0:00:10.6]} 75. Bc6 {[%clk 0:00:13.3]} 75... Bb8 {[%clk 0:00:11.5]} 76. Kd2
{[%clk 0:00:13.8]} 76... Ke7 {[%clk 0:00:12.4]} 77. Kd3 {[%clk 0:00:14.4]} 77...
Kd6 {[%clk 0:00:13.3]} 78. Bg2 {[%clk 0:00:14.7]} 78... Kc5 {[%clk 0:00:14.2]}
79. b7 {[%clk 0:00:15]} 79... Kb6 {[%clk 0:00:14.6]} 80. Bf3 {[%clk 0:00:14.2]}
80... Kc7 {[%clk 0:00:15.5]} 81. Bg2 {[%clk 0:00:14.7]} 1/2-1/2

[Event "*** SCC Grand Prix: Titled Tuesday Blitz"]
[Site "Chess.com"]
[Date "2020.06.02"]
[Round "2"]
[White "Baron_von_Koenig"]
[Black "Kezin_Roman"]
[Result "0-1"]
[WhiteElo "2457"]
[BlackElo "2692"]
[TimeControl "180+1"]
[EndTime "10:19:37 PDT"]
[Termination "Kezin_Roman won by resignation"]

1. Nc3 {[%clk 0:02:55.8]} 1... c5 {[%clk 0:02:58.3]} 2. Nf3 {[%clk 0:02:55.4]}
2... Nc6 {[%clk 0:02:56.2]} 3. d4 {[%clk 0:02:55.8]} 3... cxd4 {[%clk
0:02:55.3]} 4. Nxd4 {[%clk 0:02:56.2]} 4... e6 {[%clk 0:02:51.7]} 5. Ndb5 {[%clk
0:02:54.8]} 5... Nf6 {[%clk 0:01:13.4]} 6. Bf4 {[%clk 0:02:46.5]} 6... e5 {[%clk
0:01:11.1]} 7. Bg5 {[%clk 0:02:46.4]} 7... Be7 {[%clk 0:00:49.7]} 8. Bxf6 {[%clk
0:02:38.3]} 8... Bxf6 {[%clk 0:00:46.2]} 9. Nd6+ {[%clk 0:02:34.2]} 9... Kf8
{[%clk 0:00:40]} 10. g3 {[%clk 0:02:25.1]} 10... g6 {[%clk 0:00:39.8]} 11. Bg2
{[%clk 0:02:24.6]} 11... Kg7 {[%clk 0:00:40.4]} 12. O-O {[%clk 0:02:24.6]} 12...
Qe7 {[%clk 0:00:37]} 13. e3 {[%clk 0:02:19.9]} 13... Rd8 {[%clk 0:00:37]} 14.
Nxc8 {[%clk 0:02:16.7]} 14... Raxc8 {[%clk 0:00:36.7]} 15. Nd5 {[%clk
0:02:17.1]} 15... Qe6 {[%clk 0:00:36.3]} 16. c3 {[%clk 0:02:16.6]} 16... Be7
{[%clk 0:00:36.6]} 17. Nxe7 {[%clk 0:02:15.2]} 17... Nxe7 {[%clk 0:00:34.9]} 18.
Qb3 {[%clk 0:02:15.2]} 18... b6 {[%clk 0:00:28.3]} 19. Rad1 {[%clk 0:02:13.3]}
19... Qxb3 {[%clk 0:00:27.7]} 20. axb3 {[%clk 0:02:12.8]} 20... d6 {[%clk
0:00:18.5]} 21. Ra1 {[%clk 0:02:12.3]} 21... Rc7 {[%clk 0:00:18.6]} 22. Ra4
{[%clk 0:02:08.8]} 22... Nc8 {[%clk 0:00:18.3]} 23. Rd1 {[%clk 0:02:07.3]} 23...
Kf8 {[%clk 0:00:17.7]} 24. f4 {[%clk 0:02:01.7]} 24... Ke7 {[%clk 0:00:17.2]}
25. Kf2 {[%clk 0:02:01.1]} 25... f6 {[%clk 0:00:17.8]} 26. Rda1 {[%clk
0:01:58.1]} 26... f5 {[%clk 0:00:17.3]} 27. Rd1 {[%clk 0:01:55.2]} 27... e4
{[%clk 0:00:17.3]} 28. g4 {[%clk 0:01:55]} 28... Kf6 {[%clk 0:00:12.8]} 29. gxf5
{[%clk 0:01:51.4]} 29... gxf5 {[%clk 0:00:13.7]} 30. Bh3 {[%clk 0:01:50.3]}
30... Rdd7 {[%clk 0:00:13]} 31. Rd5 {[%clk 0:01:46.5]} 31... Ne7 {[%clk
0:00:12.6]} 32. Rd1 {[%clk 0:01:43.2]} 32... Nc6 {[%clk 0:00:09]} 33. b4 {[%clk
0:01:38.8]} 33... Ne7 {[%clk 0:00:08.6]} 34. Rg1 {[%clk 0:01:36]} 34... Rd8
{[%clk 0:00:06]} 35. Raa1 {[%clk 0:01:27.8]} 35... Rg8 {[%clk 0:00:05.4]} 36.
Rad1 {[%clk 0:01:28]} 36... Rxg1 {[%clk 0:00:05.2]} 37. Rxg1 {[%clk 0:01:27.7]}
37... Rc8 {[%clk 0:00:02.7]} 38. Rd1 {[%clk 0:01:27.2]} 38... Rd8 {[%clk
0:00:02.8]} 39. c4 {[%clk 0:01:24]} 39... Rd7 {[%clk 0:00:02.6]} 40. b3 {[%clk
0:01:22.3]} 40... Ke6 {[%clk 0:00:02.2]} 41. Rg1 {[%clk 0:01:19.2]} 41... Kf6
{[%clk 0:00:02.1]} 42. b5 {[%clk 0:01:17.2]} 42... d5 {[%clk 0:00:02.4]} 43. Rd1
{[%clk 0:01:15.3]} 43... Ke6 {[%clk 0:00:02.9]} 44. Ke2 {[%clk 0:01:02.4]} 44...
dxc4 {[%clk 0:00:03]} 45. Rxd7 {[%clk 0:01:00.1]} 45... Kxd7 {[%clk 0:00:03.9]}
46. bxc4 {[%clk 0:01:01]} 46... Kd6 {[%clk 0:00:04.3]} 47. Kd2 {[%clk
0:01:01.1]} 47... Kc5 {[%clk 0:00:04.8]} 48. Kc3 {[%clk 0:01:01.3]} 48... h6
{[%clk 0:00:03.6]} 49. Bf1 {[%clk 0:01:00.8]} 49... Ng6 {[%clk 0:00:02.8]} 50.
Bh3 {[%clk 0:01:00.4]} 50... Nh4 {[%clk 0:00:03.4]} 51. Kb3 {[%clk 0:00:58.5]}
51... Kd6 {[%clk 0:00:01.9]} 52. Kb4 {[%clk 0:00:58.2]} 52... Ke6 {[%clk
0:00:02]} 53. c5 {[%clk 0:00:58.4]} 53... Kd5 {[%clk 0:00:01.7]} 54. c6 {[%clk
0:00:53.9]} 54... Kd6 {[%clk 0:00:01.9]} 55. Kc4 {[%clk 0:00:53.7]} 55... Ke6
{[%clk 0:00:01.1]} 56. Kb4 {[%clk 0:00:51.1]} 56... Kd6 {[%clk 0:00:02]} 57. Kc3
{[%clk 0:00:50.5]} 57... Ke6 {[%clk 0:00:02.1]} 58. Kc2 {[%clk 0:00:47.6]} 58...
Kd6 {[%clk 0:00:02.2]} 59. Kb3 {[%clk 0:00:47.5]} 59... Ke6 {[%clk 0:00:02.6]}
60. Bf1 {[%clk 0:00:47.2]} 60... Nf3 {[%clk 0:00:02.7]} 61. Bc4+ {[%clk
0:00:44.4]} 61... Kd6 {[%clk 0:00:03.3]} 62. h3 {[%clk 0:00:44.5]} 62... Ng1
{[%clk 0:00:03.8]} 63. Bf1 {[%clk 0:00:43.4]} 63... Nf3 {[%clk 0:00:04]} 64. Kc3
{[%clk 0:00:42.5]} 64... Nh2 {[%clk 0:00:03.7]} 65. Be2 {[%clk 0:00:41.9]} 65...
Nf3 {[%clk 0:00:04.1]} 66. Bxf3 {[%clk 0:00:39.2]} 66... exf3 {[%clk 0:00:05]}
67. Kd2 {[%clk 0:00:39.2]} 67... a5 {[%clk 0:00:05.9]} 68. bxa6 {[%clk
0:00:39.2]} 68... Kxc6 {[%clk 0:00:06.8]} 69. Ke1 {[%clk 0:00:39.5]} 69... b5
{[%clk 0:00:07.4]} 70. Kf2 {[%clk 0:00:38.8]} 70... b4 {[%clk 0:00:07.3]} 71. e4
{[%clk 0:00:37.4]} 71... b3 {[%clk 0:00:06.6]} 72. exf5 {[%clk 0:00:36.7]} 72...
b2 {[%clk 0:00:07.2]} 73. f6 {[%clk 0:00:37.1]} 73... b1=Q {[%clk 0:00:07.5]}
74. f7 {[%clk 0:00:38]} 74... Qa2+ {[%clk 0:00:07.4]} 75. Kxf3 {[%clk
0:00:37.6]} 75... Qxf7 {[%clk 0:00:08.3]} 76. Kg4 {[%clk 0:00:38]} 76... Qa7
{[%clk 0:00:09.2]} 77. Kh5 {[%clk 0:00:38]} 77... Qxa6 {[%clk 0:00:10.1]} 78.
Kxh6 {[%clk 0:00:38.5]} 78... Kd5+ {[%clk 0:00:11]} 79. Kg5 {[%clk 0:00:38.3]}
79... Ke4 {[%clk 0:00:10.9]} 80. h4 {[%clk 0:00:38.3]} 80... Qb5+ {[%clk
0:00:11]} 81. Kg4 {[%clk 0:00:38.1]} 81... Qf5+ {[%clk 0:00:11.9]} 0-1